[Event "24th Barcelona Open-A 2019"]
[Site "Barcelona"]
[Date "2019.10.02"]
[Round "6.16"]
[White "Ayats Llobera, Gerard"]
[Black "Aroesti, Roee"]
[Result "1-0"]
[ECO "B24"]
[WhiteElo "2384"]
[BlackElo "2252"]
[Annotator "NA"]
[PlyCount "88"]
[EventDate "2019.09.27"]
[EventType "swiss"]
[EventCountry "ESP"]
[SourceTitle "playchess.com"]
[Source "ChessBase"]
[SourceQuality "1"]
[TimeControl "5400+30"]

1. e4 c5 2. Nc3 Nc6 3. g3 g6 4. Bg2 Bg7 5. d3 e6 6. Be3 d6 7. Qd2 Rb8 8. f4 Nge7 9. Nh3 b6 10. Bf2 Nd4 11. O-O O-O 12. Kh1 Bb7 13. Nd1 e5 14. f5 gxf5 15. Bxd4 cxd4 16. exf5 Nd5 17. c4 dxc3 18. bxc3 Qf6 19. Be4 Qh6 20. Qg2 Ba8 21. Bxd5 Bxd5 22. Qxd5 Qxh3 23. Ne3 Bh6 24. Nc4 Rbc8 25. Rae1 b5 26. Nxd6 Rxc3 27. Rf2 Be3 28. Rg2 Bd4 29. Qxb5 Qh6 30. Ne4 Rc1 31. Rge2 Rfc8 32. Qd7 R1c7 33. Qd5 Qc6 34. Qd6 Qxd6 35. Nxd6 Rb8 36. f6 Rc6 37. Ne4 a5 38. Kg2 a4 39. Kf3 a3 40. g4 Rb2 41. g5 h6 42. h4 Rcc2 43. Rxc2 Rxc2 44. Re2 Rc1 1-0

[Event "24th Barcelona Open-A 2019"]
[Site "Barcelona"]
[Date "2019.10.02"]
[Round "6.17"]
[White "Herrera Reyes, Jose Antonio"]
[Black "Herraiz Hidalgo, Herminio"]
[Result "0-1"]
[ECO "A06"]
[WhiteElo "2318"]
[BlackElo "2410"]
[Annotator "NA"]
[PlyCount "68"]
[EventDate "2019.09.27"]
[EventType "swiss"]
[EventCountry "ESP"]
[SourceTitle "playchess.com"]
[Source "ChessBase"]
[SourceQuality "1"]
[TimeControl "5400+30"]

1. Nf3 {[%emt 0:00:13]} d5 {[%emt 0:00:00]} 2. g3 {[%emt 0:00:06]} c6 {[%emt 0:00:01]} 3. Bg2 {[%emt 0:00:16]} Nf6 {[%emt 0:00:17]} 4. d3 {[%emt 0:00:05]} Bg4 {[%emt 0:00:36]} 5. c3 {[%emt 0:00:18]} Nbd7 {[%emt 0:00:36]} 6. O-O {[%emt 0:01:00]} e5 {[%emt 0:00:34]} 7. Qb3 {[%emt 0:00:08]} Qc7 {[%emt 0:00:49]} 8. e4 {[%emt 0:06:02]} Bd6 {[%emt 0:24:51]} 9. exd5 {[%emt 0:04:27]} cxd5 {[%emt 0:03:56]} 10. Na3 {[%emt 0:01:13]} a6 {[%emt 0:02:49]} 11. c4 {[%emt 0:03:17]} d4 {[%emt 0:11:46]} 12. Bg5 {[%emt 0:08:34]} O-O {[%emt 0:05:13]} 13. Rac1 {[%emt 0:08:38]} Nc5 {[%emt 0:05:52]} 14. Qd1 {[%emt 0:16:58]} e4 {[%emt 0:03:14]} 15. dxe4 {[%emt 0:01:39]} Nfxe4 {[%emt 0:00:19]} 16. Bd2 {[%emt 0:01:51]} Rad8 {[%emt 0:14:13]} 17. b4 {[%emt 0:13:59]} Nd3 {[%emt 0:02:16]} 18. c5 {[%emt 0:00:46]} Nxc1 {[%emt 0:05:09]} 19. cxd6 {[%emt 0:00:49]} Qxd6 {[%emt 0:01:04]} 20. Qxc1 {[%emt 0:01:40]} Rc8 {[%emt 0:05:19]} 21. Qb2 {[%emt 0:00:30]} Nxd2 {[%emt 0:04:41]} 22. Nxd2 {[%emt 0:00:56]} b5 {[%emt 0:00:32]} 23. Ne4 {[%emt 0:00:34]} Qb6 {[%emt 0:01:15]} 24. Nb1 {[%emt 0:02:56]} d3 {[%emt 0:01:58]} 25. Nbc3 {[%emt 0:01:16]} Qd4 {[%emt 0:00:53]} 26. Qd2 {[%emt 0:00:01]} f5 {[%emt 0:00:58]} 27. Nc5 {[%emt 0:13:33]} Qxb4 {[%emt 0:00:07]} 28. Bd5+ {[%emt 0:00:26]} Kh8 {[%emt 0:00:08]} 29. Ne6 {[%emt 0:00:11]} Qxc3 {[%emt 0:01:14]} 30. Qxc3 {[%emt 0:00:40]} Rxc3 {[%emt 0:00:04]} 31. f3 {[%emt 0:00:09]} Rfc8 {[%emt 0:01:44]} 32. fxg4 {[%emt 0:03:56]} d2 {[%emt 0:00:27]} 33. Kf2 {[%emt 0:00:19]} Rd3 {[%emt 0:00:46]} 34. Nf4 {[%emt 0:04:01]} d1=Q {[%emt 0:00:19]} 0-1

[Event "24th Barcelona Open-A 2019"]
[Site "Barcelona"]
[Date "2019.10.02"]
[Round "6.18"]
[White "Lever, Erwan"]
[Black "Cruz, Jonathan"]
[Result "0-1"]
[ECO "D85"]
[WhiteElo "2221"]
[BlackElo "2409"]
[Annotator "NA"]
[PlyCount "82"]
[EventDate "2019.09.27"]
[EventType "swiss"]
[EventCountry "ESP"]
[SourceTitle "playchess.com"]
[Source "ChessBase"]
[SourceQuality "1"]
[TimeControl "5400+30"]

1. d4 {[%emt 0:00:00]} Nf6 {[%emt 0:07:34]} 2. c4 {[%emt 0:00:00]} g6 {[%emt 0:00:22]} 3. Nc3 {[%emt 0:00:06]} d5 {[%emt 0:00:15]} 4. cxd5 {[%emt 0:00:05]} Nxd5 {[%emt 0:00:08]} 5. Bd2 {[%emt 0:00:58]} Bg7 {[%emt 0:00:36]} 6. e4 {[%emt 0:00:11]} Nxc3 {[%emt 0:00:18]} 7. Bxc3 {[%emt 0:00:06]} O-O {[%emt 0:00:16]} 8. Qd2 {[%emt 0:00:22]} b6 {[%emt 0:00:32]} 9. Rd1 {[%emt 0:05:40]} Qd7 {[%emt 0:11:15]} 10. Nf3 {[%emt 0:01:11]} Qg4 {[%emt 0:01:57]} 11. Qe3 {[%emt 0:01:50]} Bb7 {[%emt 0:00:58]} 12. d5 {[%emt 0:02:52]} Bxc3+ {[%emt 0:05:44]} 13. bxc3 {[%emt 0:00:04]} c6 {[%emt 0:00:57]} 14. h3 {[%emt 0:06:31]} Qc8 {[%emt 0:00:17]} 15. Qh6 {[%emt 0:26:52]} cxd5 {[%emt 0:01:39]} 16. c4 {[%emt 0:00:15]} f6 {[%emt 0:04:00]} 17. exd5 {[%emt 0:00:19]} e5 {[%emt 0:03:19]} 18. h4 {[%emt 0:04:55]} Rf7 {[%emt 0:07:01]} 19. h5 {[%emt 0:14:30]} g5 {[%emt 0:00:06]} 20. Nh2 {[%emt 0:07:31]} Qc5 {[%emt 0:11:43]} 21. Ng4 {[%emt 0:04:04]} Qb4+ {[%emt 0:04:26]} 22. Rd2 {[%emt 0:00:06]} Nd7 {[%emt 0:00:24]} 23. Rh3 {[%emt 0:03:05]} Qb1+ {[%emt 0:02:44]} 24. Rd1 {[%emt 0:00:09]} Qb4+ {[%emt 0:03:09]} 25. Rd2 {[%emt 0:00:06]} e4 {[%emt 0:02:02]} 26. Be2 {[%emt 0:01:04]} Re8 {[%emt 0:02:30]} 27. Re3 {[%emt 0:05:34]} Qd6 {[%emt 0:09:06]} 28. f3 {[%emt 0:00:39]} Nc5 {[%emt 0:00:32]} 29. Rd4 {[%emt 0:03:35]} Bc8 {[%emt 0:01:07]} 30. Nf2 {[%emt 0:04:48]} Qg3 {[%emt 0:00:58]} 31. Kf1 {[%emt 0:00:31]} f5 {[%emt 0:00:36]} 32. a4 {[%emt 0:05:06]} Ref8 {[%emt 0:02:07]} 33. Nh3 {[%emt 0:01:07]} f4 {[%emt 0:01:55]} 34. Qxg5+ {[%emt 0:01:18]} Qxg5 {[%emt 0:00:24]} 35. Nxg5 {[%emt 0:00:02]} fxe3 {[%emt 0:00:23]} 36. Nxf7 {[%emt 0:00:16]} Rxf7 {[%emt 0:01:15]} 37. a5 {[%emt 0:00:16]} Nb3 {[%emt 0:05:27]} 38. Rd1 {[%emt 0:00:19]} Nxa5 {[%emt 0:01:53]} 39. Ke1 {[%emt 0:00:11]} exf3 {[%emt 0:00:13]} 40. Bxf3 {[%emt 0:00:23]} Kf8 {[%emt 0:01:40]} 41. d6 {[%emt 0:00:58]} Be6 {[%emt 0:02:00]} 0-1

[Event "24th Barcelona Open-A 2019"]
[Site "Barcelona"]
[Date "2019.10.02"]
[Round "6.19"]
[White "Prats Rodriguez, Juan Bosco"]
[Black "Palacin Martin, Ricardo"]
[Result "0-1"]
[ECO "B26"]
[WhiteElo "1936"]
[BlackElo "1985"]
[Annotator "NA"]
[PlyCount "110"]
[EventDate "2019.09.27"]
[EventType "swiss"]
[EventCountry "ESP"]
[SourceTitle "playchess.com"]
[Source "ChessBase"]
[SourceQuality "1"]
[TimeControl "5400+30"]

1. e4 {[%emt 0:00:00]} c5 {[%emt 0:00:00]} 2. Nc3 {[%emt 0:00:00]} Nc6 {[%emt 0:00:00]} 3. g3 {[%emt 0:00:00]} g6 {[%emt 0:00:00]} 4. Bg2 {[%emt 0:00:00]} Bg7 5. d3 {[%emt 0:00:00]} d6 {[%emt 0:00:00]} 6. Be3 {[%emt 0:00:04]} Nf6 {[%emt 0:00:07]} 7. Nge2 {[%emt 0:00:27]} Ng4 {[%emt 0:07:49]} 8. Bd2 {[%emt 0:03:59]} Nd4 9. h3 Ne5 {[%emt 0:04:20]} 10. Nxd4 {[%emt 0:00:46]} cxd4 11. Nd5 {[%emt 0:07:02]} e6 {[%emt 0:02:13]} 12. Nf4 {[%emt 0:00:07]} Qb6 {[%emt 0:00:41]} 13. Rb1 {[%emt 0:08:30]} Bd7 {[%emt 0:01:37]} 14. O-O {[%emt 0:00:27]} Qa6 {[%emt 0:11:04]} 15. Bb4 {[%emt 0:05:29]} O-O 16. Ne2 {[%emt 0:00:57]} Qb6 {[%emt 0:01:35]} 17. Ba3 {[%emt 0:01:51]} Bb5 {[%emt 0:01:38]} 18. Kh2 {[%emt 0:07:01]} Rfd8 {[%emt 0:03:18]} 19. f4 {[%emt 0:00:50]} Nd7 {[%emt 0:00:10]} 20. Qd2 {[%emt 0:09:29]} Rac8 {[%emt 0:03:56]} 21. f5 {[%emt 0:01:05]} Be5 {[%emt 0:00:54]} 22. Rbc1 {[%emt 0:01:21]} Nc5 {[%emt 0:03:41]} 23. Nf4 {[%emt 0:07:19]} Re8 {[%emt 0:02:05]} 24. h4 {[%emt 0:00:51]} Bd7 {[%emt 0:04:43]} 25. Bh3 {[%emt 0:01:45]} Qd8 {[%emt 0:00:39]} 26. Qf2 {[%emt 0:02:06]} Qf6 {[%emt 0:03:57]} 27. Qf3 {[%emt 0:03:52]} gxf5 {[%emt 0:15:06]} 28. exf5 {[%emt 0:00:45]} exf5 {[%emt 0:00:13]} 29. Qh5 {[%emt 0:04:33]} Kh8 {[%emt 0:05:37]} 30. Rf2 {[%emt 0:07:59]} Rg8 {[%emt 0:01:53]} 31. Rg1 {[%emt 0:01:29]} Rg7 {[%emt 0:00:55]} 32. Nd5 {[%emt 0:05:39]} Qg6 {[%emt 0:10:36]} 33. Qxg6 {[%emt 0:00:02]} fxg6 {[%emt 0:00:29]} 34. Bg2 {[%emt 0:04:14]} Bc6 {[%emt 0:01:03]} 35. Nf4 {[%emt 0:03:52]} Re8 {[%emt 0:02:57]} 36. Re1 {[%emt 0:02:54]} Rge7 {[%emt 0:00:33]} 37. Rfe2 {[%emt 0:00:48]} Kg7 {[%emt 0:00:33]} 38. b3 {[%emt 0:00:55]} Kf6 {[%emt 0:00:43]} 39. Bb2 {[%emt 0:04:08]} Bxg2 {[%emt 0:01:49]} 40. Kxg2 {[%emt 0:00:14]} Bxf4 {[%emt 0:00:07]} 41. Rxe7 {[%emt 0:00:21]} Rxe7 {[%emt 0:00:13]} 42. Rxe7 {[%emt 0:00:16]} Kxe7 {[%emt 0:00:06]} 43. gxf4 {[%emt 0:00:06]} Ne6 {[%emt 0:00:05]} 44. Kf3 {[%emt 0:00:58]} Kd7 {[%emt 0:00:55]} 45. a4 {[%emt 0:00:26]} Kc6 {[%emt 0:00:21]} 46. Ba3 {[%emt 0:01:40]} b6 {[%emt 0:01:00]} 47. Kg3 {[%emt 0:00:29]} a6 {[%emt 0:00:39]} 48. Bb2 {[%emt 0:00:13]} Kd5 {[%emt 0:01:13]} 49. Ba3 {[%emt 0:00:24]} b5 {[%emt 0:00:15]} 50. axb5 axb5 {[%emt 0:00:02]} 51. Bb4 {[%emt 0:01:04]} Nd8 {[%emt 0:00:19]} 52. Bd2 {[%emt 0:00:53]} Nc6 {[%emt 0:00:48]} 53. h5 {[%emt 0:00:57]} Ke6 {[%emt 0:01:49]} 54. hxg6 {[%emt 0:00:06]} hxg6 {[%emt 0:00:02]} 55. Bc1 {[%emt 0:00:38]} Nb4 {[%emt 0:00:27]} 0-1

[Event "24th Barcelona Open-A 2019"]
[Site "Barcelona"]
[Date "2019.10.02"]
[Round "6.20"]
[White "Walukow, Theodora Paulina"]
[Black "Garcia Ruiz, Adrian"]
[Result "1/2-1/2"]
[ECO "B90"]
[WhiteElo "1864"]
[BlackElo "1955"]
[Annotator "NA"]
[PlyCount "145"]
[EventDate "2019.09.27"]
[EventType "swiss"]
[EventCountry "ESP"]
[SourceTitle "playchess.com"]
[Source "ChessBase"]
[SourceQuality "1"]
[TimeControl "5400+30"]

1. e4 c5 2. Nf3 d6 3. d4 cxd4 4. Nxd4 Nf6 5. Nc3 a6 6. Be3 e6 7. f3 b5 8. Qd2 Nbd7 9. g4 h6 10. h4 Bb7 11. O-O-O b4 12. Nce2 d5 13. Ng3 dxe4 14. Nxe4 Nxe4 15. fxe4 Bxe4 16. Bg2 Bxg2 17. Qxg2 Rc8 18. g5 hxg5 19. Bxg5 Qc7 20. Rhe1 Nf6 21. Rd2 Be7 22. Nf5 Bf8 23. Bxf6 gxf6 24. Ng7+ Bxg7 25. Qxg7 Ke7 26. Rf2 f5 27. Qg5+ Kf8 28. Rg2 Qd8 29. Qg7+ Ke7 30. Rg6 Rc6 31. Qf6+ Kd7 32. Qxf7+ Qe7 33. Rd1+ Rd6 34. Qxe7+ Kxe7 35. Rg7+ Kf6 36. Rxd6 Kxg7 37. Rxe6 Rxh4 38. Rxa6 Rd4 39. Re6 f4 40. Re1 Kf6 41. Rd1 Re4 42. Kd2 Kf5 43. Re1 Rd4+ 44. Ke2 Rd6 45. Kf3 Rd4 46. Re2 Rd1 47. Re4 Rf1+ 48. Ke2 Rc1 49. Kf3 Rf1+ 50. Ke2 Rc1 51. Rxb4 Rxc2+ 52. Kf3 Ke5 53. Rb5+ Kd6 54. Kxf4 Kc6 55. Rb3 Re2 56. a4 Re1 57. a5 Ra1 58. Rb6+ Kc7 59. b4 Rc1 60. Ke5 Rc4 61. Kd5 Rc1 62. Rg6 Kb7 63. a6+ Ka7 64. b5 Rc2 65. Rc6 Rb2 66. Kc5 Rc2+ 67. Kd6 Rb2 68. Rc7+ Kb8 69. Rb7+ Ka8 70. Kc6 Rc2+ 71. Kb6 Rc6+ 72. Ka5 Rxa6+ 73. bxa6 1/2-1/2

[Event "24th Barcelona Open-A 2019"]
[Site "Barcelona"]
[Date "2019.10.03"]
[Round "7.4"]
[White "Krishna Teja, N."]
[Black "Svane, Rasmus"]
[Result "0-1"]
[ECO "A05"]
[WhiteElo "2364"]
[BlackElo "2592"]
[Annotator "ChessBase"]
[PlyCount "100"]
[EventDate "2019.09.27"]
[EventType "swiss"]
[EventCountry "ESP"]
[SourceTitle "playchess.com"]
[Source "ChessBase"]
[SourceQuality "1"]
[TimeControl "5400+30"]

1. Nf3 {[%emt 0:10:05]} Nf6 2. c4 {[%emt 0:00:11]} b6 {[%emt 0:05:14]} 3. g3 {[%emt 0:00:06]} Bb7 {[%emt 0:00:56]} 4. Bg2 g6 {[%emt 0:00:25]} 5. b3 {[%emt 0:04:00]} Bg7 6. Bb2 {[%emt 0:00:00]} O-O {[%emt 0:00:44]} 7. O-O {[%emt 0:01:30]} d6 {[%emt 0:08:42]} 8. d4 {[%emt 0:00:50]} e6 {[%emt 0:01:22]} 9. Nc3 {[%emt 0:06:20]} Ne4 10. Nd2 {[%emt 0:00:30]} Nxc3 {[%emt 0:01:06]} 11. Bxc3 {[%emt 0:01:01]} Bxg2 {[%emt 0:08:22]} 12. Kxg2 {[%emt 0:01:58]} Qe7 {[%emt 0:10:05]} 13. Nf3 {[%emt 0:02:03]} Nd7 {[%emt 0:10:51]} 14. e4 {[%emt 0:04:06]} a6 15. Qe2 {[%emt 0:00:18]} Rfb8 {[%emt 0:01:43]} 16. a4 c5 17. Qb2 {[%emt 0:05:52]} Rb7 {[%emt 0:14:12]} 18. Rfd1 {[%emt 0:03:59]} Rab8 {[%emt 0:00:50]} 19. b4 {[%emt 0:01:41]} cxd4 {[%emt 0:05:33]} 20. Bxd4 {[%emt 0:00:49]} e5 21. Be3 Rc8 {[%emt 0:03:45]} 22. Rac1 {[%emt 0:01:31]} Rbc7 {[%emt 0:00:16]} 23. Qd2 {[%emt 0:03:18]} Bf8 {[%emt 0:01:39]} 24. Qd5 {[%emt 0:04:24]} h6 {[%emt 0:02:55]} 25. b5 {[%emt 0:02:35]} a5 {[%emt 0:02:18]} 26. Nd2 {[%emt 0:04:26]} Kh7 {[%emt 0:01:48]} 27. f3 {[%emt 0:01:15]} h5 {[%emt 0:00:00]} 28. h4 {[%emt 0:00:30]} Nc5 29. Bxc5 {[%emt 0:01:20]} Rxc5 {[%emt 0:04:23]} 30. Qd3 {[%emt 0:00:06]} Bh6 31. Rc2 {[%emt 0:02:23]} Qe6 {[%emt 0:02:20]} 32. Rdc1 {[%emt 0:01:14]} R5c7 {[%emt 0:01:22]} 33. Rd1 {[%emt 0:11:05]} Kg8 {[%emt 0:00:43]} 34. Kf2 {[%emt 0:01:39]} Kg7 {[%emt 0:01:29]} 35. Ke2 Kh7 {[%emt 0:01:28]} 36. Ke1 {[%emt 0:01:30]} Bxd2+ {[%emt 0:01:45]} 37. Rcxd2 {[%emt 0:08:27]} Qh3 {[%emt 0:00:08]} 38. Qxd6 {[%emt 0:00:02]} Qxg3+ {[%emt 0:01:40]} 39. Ke2 Qh2+ 40. Ke3 {[%emt 0:01:14]} Qf4+ {[%emt 0:00:46]} 41. Ke2 {[%emt 0:00:07]} Rxc4 {[%emt 0:03:26]} 42. Qxb6 {[%emt 0:00:52]} Rxa4 {[%emt 0:00:28]} 43. Qe3 {[%emt 0:00:22]} Qxh4 {[%emt 0:01:55]} 44. Rb1 Rac4 {[%emt 0:03:21]} 45. Qg1 {[%emt 0:06:42]} Rc2 {[%emt 0:02:04]} 46. Rbd1 {[%emt 0:04:54]} Qf4 {[%emt 0:01:14]} 47. b6 R8c3 48. Rxc2 {[%emt 0:02:32]} Qxf3+ {[%emt 0:01:02]} 49. Kd2 {[%emt 0:00:03]} Qd3+ {[%emt 0:00:09]} 50. Ke1 {[%emt 0:00:03]} Qxc2 0-1

[Event "24th Barcelona Open-A 2019"]
[Site "Barcelona"]
[Date "2019.10.03"]
[Round "7.13"]
[White "Cruz, Jonathan"]
[Black "Veinberg, Nimrod"]
[Result "1-0"]
[ECO "C50"]
[WhiteElo "2409"]
[BlackElo "2411"]
[Annotator "NA"]
[PlyCount "73"]
[EventDate "2019.09.27"]
[EventType "swiss"]
[EventCountry "ESP"]
[SourceTitle "playchess.com"]
[Source "ChessBase"]
[SourceQuality "1"]
[TimeControl "5400+30"]

1. e4 {[%emt 0:10:44]} e5 {[%emt 0:00:00]} 2. Nf3 {[%emt 0:00:21]} Nc6 {[%emt 0:00:00]} 3. Bc4 {[%emt 0:00:26]} Bc5 {[%emt 0:00:00]} 4. d3 {[%emt 0:00:27]} Nf6 {[%emt 0:00:09]} 5. Nbd2 {[%emt 0:00:29]} d6 {[%emt 0:01:05]} 6. c3 {[%emt 0:01:28]} O-O {[%emt 0:00:14]} 7. Nf1 {[%emt 0:04:11]} Ne7 {[%emt 0:07:34]} 8. Ng3 Ng6 {[%emt 0:00:13]} 9. O-O {[%emt 0:06:27]} h6 {[%emt 0:00:37]} 10. Be3 {[%emt 0:00:36]} Bb6 {[%emt 0:01:28]} 11. a4 {[%emt 0:00:26]} c6 {[%emt 0:00:22]} 12. Bb3 {[%emt 0:01:47]} Be6 {[%emt 0:04:58]} 13. Bc2 {[%emt 0:04:18]} d5 {[%emt 0:01:46]} 14. exd5 {[%emt 0:03:59]} Bxd5 15. Re1 {[%emt 0:12:14]} Re8 {[%emt 0:17:40]} 16. Nd2 {[%emt 0:07:37]} Be6 17. Nf3 {[%emt 0:07:34]} Bd5 {[%emt 0:06:09]} 18. Nd2 {[%emt 0:01:20]} Be6 {[%emt 0:11:13]} 19. Nf3 Qc7 {[%emt 0:07:03]} 20. d4 {[%emt 0:04:46]} Bg4 21. Bxg6 {[%emt 0:06:14]} exd4 {[%emt 0:06:36]} 22. Bxd4 Bxd4 {[%emt 0:09:15]} 23. Qxd4 {[%emt 0:07:48]} Bxf3 {[%emt 0:00:44]} 24. Bc2 Bg4 {[%emt 0:02:55]} 25. Rxe8+ {[%emt 0:04:59]} Rxe8 {[%emt 0:00:03]} 26. Qxa7 {[%emt 0:00:22]} c5 {[%emt 0:00:33]} 27. a5 g6 28. a6 {[%emt 0:04:58]} Bc8 {[%emt 0:07:41]} 29. b4 Qc6 30. bxc5 {[%emt 0:05:20]} Qd5 {[%emt 0:09:14]} 31. Ba4 Rd8 {[%emt 0:05:07]} 32. Qb6 {[%emt 0:03:25]} Ng4 {[%emt 0:01:41]} 33. a7 {[%emt 0:02:12]} Be6 34. c6 {[%emt 0:00:58]} bxc6 {[%emt 0:01:42]} 35. Bxc6 Qd1+ {[%emt 0:00:12]} 36. Nf1 {[%emt 0:01:15]} Bc4 {[%emt 0:01:09]} 37. Qxd8+ {[%emt 0:00:13]} 1-0

[Event "24th Barcelona Open-A 2019"]
[Site "Barcelona"]
[Date "2019.10.03"]
[Round "7.16"]
[White "Duran Vega, Sergio"]
[Black "Gomez Anadon, Daniel"]
[Result "1/2-1/2"]
[ECO "E04"]
[WhiteElo "2387"]
[BlackElo "2245"]
[Annotator "NA"]
[PlyCount "47"]
[EventDate "2019.09.27"]
[EventType "swiss"]
[EventCountry "ESP"]
[SourceTitle "playchess.com"]
[Source "ChessBase"]
[SourceQuality "1"]
[TimeControl "5400+30"]

1. d4 d5 2. c4 e6 3. Nf3 Nf6 4. g3 dxc4 5. Bg2 a6 6. O-O Nc6 7. e3 Rb8 8. Nfd2 Qd7 9. Nxc4 b5 10. Ncd2 Be7 11. Nc3 O-O 12. Nde4 Nxe4 13. Nxe4 Rd8 14. Qh5 Bb7 15. Bd2 f5 16. Ng5 Bxg5 17. Qxg5 Ne7 18. Bb4 Bxg2 19. Bxe7 Bxf1 20. Bxd8 Be2 21. Re1 Bf3 22. Qf4 Ba8 23. Bxc7 Rc8 24. Rc1 1/2-1/2

[Event "24th Barcelona Open-A 2019"]
[Site "Barcelona"]
[Date "2019.10.03"]
[Round "7.17"]
[White "Oliver Martinez-Fornes, Carlos"]
[Black "Cuhendi, Sean Winshand"]
[Result "0-1"]
[ECO "D07"]
[WhiteElo "2063"]
[BlackElo "2425"]
[Annotator "NA"]
[PlyCount "90"]
[EventDate "2019.09.27"]
[EventType "swiss"]
[EventCountry "ESP"]
[SourceTitle "playchess.com"]
[Source "ChessBase"]
[SourceQuality "1"]
[TimeControl "5400+30"]

1. d4 {[%emt 0:00:00]} d5 {[%emt 0:00:07]} 2. c4 {[%emt 0:00:00]} Nc6 {[%emt 0:00:32]} 3. Nf3 {[%emt 0:02:44]} Bg4 {[%emt 0:01:53]} 4. Nc3 {[%emt 0:03:56]} e6 {[%emt 0:01:46]} 5. e3 {[%emt 0:04:26]} Nf6 {[%emt 0:02:06]} 6. h3 {[%emt 0:01:18]} Bh5 7. a3 dxc4 {[%emt 0:07:17]} 8. Bxc4 {[%emt 0:14:13]} Bd6 {[%emt 0:00:39]} 9. Be2 O-O 10. O-O {[%emt 0:11:50]} a6 {[%emt 0:09:40]} 11. e4 Bxf3 {[%emt 0:00:26]} 12. Bxf3 {[%emt 0:09:49]} Nxd4 {[%emt 0:02:28]} 13. Be3 {[%emt 0:02:13]} Nxf3+ {[%emt 0:02:15]} 14. Qxf3 {[%emt 0:00:10]} Qe7 15. Rac1 {[%emt 0:03:18]} Be5 {[%emt 0:03:19]} 16. b4 {[%emt 0:05:11]} Rfd8 {[%emt 0:01:39]} 17. Bf4 Bxf4 {[%emt 0:06:09]} 18. Qxf4 {[%emt 0:09:50]} e5 {[%emt 0:00:57]} 19. Qe3 {[%emt 0:00:39]} Rd4 20. f3 Rad8 {[%emt 0:03:11]} 21. Rc2 {[%emt 0:11:17]} c6 {[%emt 0:02:01]} 22. Na4 {[%emt 0:04:53]} Nh5 23. Kh2 {[%emt 0:05:03]} Rd3 {[%emt 0:06:16]} 24. Qc1 {[%emt 0:02:37]} Nf4 25. g3 {[%emt 0:02:48]} Ne6 {[%emt 0:05:09]} 26. Nc5 {[%emt 0:01:41]} Nxc5 {[%emt 0:01:00]} 27. bxc5 {[%emt 0:00:02]} h6 {[%emt 0:00:08]} 28. Rff2 {[%emt 0:00:50]} R8d7 {[%emt 0:02:15]} 29. Kg2 {[%emt 0:00:59]} Qd8 30. Qb2 {[%emt 0:00:55]} R3d4 {[%emt 0:00:44]} 31. h4 {[%emt 0:00:37]} Qa5 {[%emt 0:00:24]} 32. Rfe2 Qb5 {[%emt 0:03:19]} 33. Qa2 {[%emt 0:02:03]} Rd3 {[%emt 0:01:52]} 34. Qa1 {[%emt 0:00:31]} R7d4 {[%emt 0:01:41]} 35. Qa2 {[%emt 0:02:35]} Qa4 {[%emt 0:01:09]} 36. Rcd2 {[%emt 0:00:59]} Rxa3 {[%emt 0:00:55]} 37. Rxd4 {[%emt 0:00:24]} Rxa2 {[%emt 0:00:40]} 38. Rxa4 {[%emt 0:00:02]} Rxe2+ {[%emt 0:00:19]} 39. Kh3 {[%emt 0:00:09]} Rb2 {[%emt 0:03:29]} 40. Kg4 {[%emt 0:00:12]} Rb3 {[%emt 0:00:19]} 41. h5 {[%emt 0:00:56]} Kf8 {[%emt 0:00:03]} 42. f4 {[%emt 0:00:18]} Rb5 {[%emt 0:00:18]} 43. Rc4 {[%emt 0:00:16]} Ke7 {[%emt 0:00:34]} 44. Kf5 {[%emt 0:00:26]} exf4 {[%emt 0:00:05]} 45. gxf4 {[%emt 0:00:07]} b6 {[%emt 0:00:03]} 0-1

[Event "24th Barcelona Open-A 2019"]
[Site "Barcelona"]
[Date "2019.10.03"]
[Round "7.18"]
[White "Valenzuela Gomez, Fernando"]
[Black "Rahman, Masruri"]
[Result "1/2-1/2"]
[ECO "D26"]
[WhiteElo "2366"]
[BlackElo "2271"]
[Annotator "NA"]
[PlyCount "125"]
[EventDate "2019.09.27"]
[EventType "swiss"]
[EventCountry "ESP"]
[SourceTitle "playchess.com"]
[Source "ChessBase"]
[SourceQuality "1"]
[TimeControl "5400+30"]

1. Nf3 {[%emt 0:06:27]} d5 {[%emt 0:00:21]} 2. d4 {[%emt 0:00:34]} Nf6 {[%emt 0:00:24]} 3. c4 {[%emt 0:00:13]} dxc4 {[%emt 0:00:44]} 4. e3 {[%emt 0:00:18]} e6 {[%emt 0:00:13]} 5. Bxc4 {[%emt 0:00:15]} a6 {[%emt 0:00:06]} 6. O-O {[%emt 0:01:10]} c5 {[%emt 0:00:27]} 7. Nc3 {[%emt 0:00:38]} b5 {[%emt 0:00:30]} 8. Bb3 {[%emt 0:00:37]} Bb7 {[%emt 0:00:40]} 9. e4 {[%emt 0:01:02]} cxd4 {[%emt 0:07:02]} 10. Nxd4 {[%emt 0:01:06]} Nc6 {[%emt 0:00:20]} 11. Nxc6 {[%emt 0:00:16]} Qxd1 {[%emt 0:01:50]} 12. Rxd1 {[%emt 0:00:18]} Bxc6 {[%emt 0:00:05]} 13. f3 {[%emt 0:00:00]} Bc5+ {[%emt 0:01:53]} 14. Kf1 b4 15. Ba4 {[%emt 0:29:47]} Rc8 {[%emt 0:11:43]} 16. Bxc6+ {[%emt 0:00:11]} Rxc6 {[%emt 0:00:05]} 17. Na4 O-O {[%emt 0:09:04]} 18. Nxc5 {[%emt 0:04:57]} Rxc5 {[%emt 0:00:15]} 19. Bd2 {[%emt 0:00:18]} a5 {[%emt 0:03:28]} 20. Rac1 {[%emt 0:00:44]} Rxc1 {[%emt 0:02:11]} 21. Rxc1 {[%emt 0:00:25]} Ra8 {[%emt 0:00:16]} 22. Rc7 {[%emt 0:10:33]} Kf8 23. a3 bxa3 {[%emt 0:21:38]} 24. bxa3 {[%emt 0:05:47]} Ne8 {[%emt 0:09:38]} 25. Rc5 {[%emt 0:00:27]} a4 {[%emt 0:00:47]} 26. Bb4 {[%emt 0:00:52]} Kg8 {[%emt 0:00:34]} 27. Ra5 {[%emt 0:02:49]} Rxa5 {[%emt 0:05:47]} 28. Bxa5 {[%emt 0:00:17]} f5 {[%emt 0:00:08]} 29. e5 {[%emt 0:02:27]} f4 {[%emt 0:00:31]} 30. Ke2 {[%emt 0:03:57]} Kf7 {[%emt 0:00:18]} 31. Kd3 {[%emt 0:01:00]} g5 32. Kc4 {[%emt 0:07:33]} Kg6 {[%emt 0:00:16]} 33. Kb5 {[%emt 0:01:00]} Kf5 {[%emt 0:00:36]} 34. Bc3 h5 {[%emt 0:00:00]} 35. Kxa4 {[%emt 0:01:45]} g4 36. Kb3 {[%emt 0:04:10]} gxf3 {[%emt 0:02:01]} 37. gxf3 {[%emt 0:00:04]} Kg5 {[%emt 0:00:04]} 38. a4 {[%emt 0:01:03]} Kh4 {[%emt 0:00:07]} 39. Bd2 {[%emt 0:08:10]} Kh3 {[%emt 0:00:06]} 40. Bxf4 {[%emt 0:00:24]} Kg2 {[%emt 0:00:04]} 41. h4 {[%emt 0:02:44]} Kxf3 {[%emt 0:00:07]} 42. Bg5 {[%emt 0:00:21]} Ke4 {[%emt 0:00:15]} 43. Bf6 {[%emt 0:01:23]} Kd5 {[%emt 0:00:04]} 44. Kb4 {[%emt 0:00:32]} Kc6 {[%emt 0:00:54]} 45. Kc4 {[%emt 0:01:02]} Nc7 {[%emt 0:00:10]} 46. a5 {[%emt 0:00:49]} Nd5 {[%emt 0:02:24]} 47. Bg5 {[%emt 0:00:18]} Nc7 {[%emt 0:00:06]} 48. Bd8 {[%emt 0:00:36]} Nd5 {[%emt 0:00:05]} 49. a6 {[%emt 0:00:59]} Nf4 {[%emt 0:02:19]} 50. Kd4 {[%emt 0:00:23]} Ng6 {[%emt 0:00:11]} 51. Ke4 {[%emt 0:00:34]} Nh8 {[%emt 0:00:07]} 52. Ba5 {[%emt 0:01:44]} Ng6 {[%emt 0:00:14]} 53. Bd8 {[%emt 0:00:06]} Nh8 {[%emt 0:00:05]} 54. Kd4 {[%emt 0:01:33]} Nf7 {[%emt 0:01:27]} 55. Ba5 {[%emt 0:00:19]} Nh8 {[%emt 0:00:30]} 56. Bd8 {[%emt 0:01:15]} Nf7 {[%emt 0:00:06]} 57. a7 {[%emt 0:01:02]} Kb7 {[%emt 0:00:05]} 58. Bb6 {[%emt 0:00:20]} Nh8 {[%emt 0:01:08]} 59. Ke4 {[%emt 0:00:23]} Ng6 {[%emt 0:00:27]} 60. Bf2 {[%emt 0:00:07]} Ka8 {[%emt 0:00:05]} 61. Bd4 {[%emt 0:01:43]} Nxh4 62. Kf4 {[%emt 0:00:25]} Ng6+ {[%emt 0:00:49]} 63. Kg5 {[%emt 0:00:39]} 1/2-1/2